bitfinex-derivatives/quotes_ETHF0:USTF0_20240913
["timestamp","ask_amount","ask_price","bid_price","bid_amount"]
[1726242151378,3.2078,2399.7,2399.3,0.41671]
[1726242151379,0.41668,2399.6,2399.3,0.41671]
[1726242151995,3.2078,2399.7,2399.2,0.41674]
[1726242151996,0.4167,2399.5,2399.2,0.41674]
[1726242152289,0.41668,2399.6,2399.2,0.41674]
[1726242152489,3.2078,2399.7,2399.1,4.98865]
[1726242152691,3.2078,2399.7,2399.1,3.2078]
[1726242152889,0.41671,2399.4,2399.1,3.62455]
[1726242153087,4.5338,2399.7,2399.1,3.2078]
[1726242153088,5.57547,2399.7,2399.1,3.2078]
[1726242153389,5.57547,2399.7,2399.1,3.62455]
[1726242153594,5.57547,2399.7,2399.1,3.2078]
[1726242153893,0.41671,2399.4,2399.1,3.2078]
[1726242154093,0.4167,2399.5,2399.1,3.62455]
[1726242154295,0.4167,2399.5,2399.2,0.41674]
[1726242154486,0.4167,2399.5,2399.1,3.62454]
[1726242155590,3.2078,2399.7,2399.1,3.2078]
[1726242155988,3.2078,2399.7,2399.4,0.4167]
[1726242156188,3.2078,2399.7,2399.1,3.2078]
[1726242156385,3.2078,2399.7,2399.4,0.41669]
[1726242156790,3.2078,2399.7,2399.1,3.2078]
[1726242156998,3.2078,2399.7,2399.6,0.41667]
[1726242157202,3.62441,2400.0,2399.7,0.41664]
[1726242157690,3.2078,2400.0,2399.5,1.3001]
[1726242157890,3.62441,2400.0,2399.7,0.41664]
[1726242158501,0.41661,2400.0,2399.7,0.41664]
[1726242158894,0.41661,2400.0,2399.8,0.41663]
[1726242159201,0.41662,2399.9,2399.6,0.41666]
[1726242159493,0.4166,2400.0,2399.7,0.41664]
[1726242159900,0.41659,2400.1,2399.5,1.3001]
[1726242160089,0.41657,2400.2,2399.5,1.3001]
[1726242160490,0.41658,2400.1,2399.9,0.41661]
[1726242160697,0.41658,2400.1,2399.8,0.41662]
[1726242161000,3.2078,2400.3,2399.7,3.2078]
[1726242161203,0.41654,2400.4,2399.8,1.04159]
[1726242161403,0.41657,2400.2,2399.9,0.41661]
[1726242161699,1.4306,2400.5,2399.8,1.04159]
[1726242161907,0.41654,2400.4,2400.1,0.41657]
[1726242162096,0.41654,2400.4,2399.8,1.04159]
[1726242162296,0.41655,2400.3,2399.7,3.2078]
[1726242162499,0.41655,2400.3,2400.0,0.41659]
[1726242162798,1.4306,2400.5,2399.7,3.2078]
[1726242162799,2.47192,2400.5,2399.7,3.2078]
[1726242162995,4.24913,2400.4,2399.7,3.2078]
[1726242163194,3.2078,2400.4,2399.7,3.2078]
[1726242163499,3.53804812,2400.5,2399.5,1.71678]
[1726242163500,0.41666,2399.7,2399.5,1.71678]
[1726242163799,0.41662,2399.9,2399.5,1.71678]
[1726242163994,0.41665,2399.8,2399.6,0.41667]
[1726242164200,0.41664,2399.8,2399.6,0.41665]
[1726242164695,0.41663,2399.9,2399.5,1.3001]
[1726242164897,4.24928,2400.1,2399.6,0.41665]
[1726242165095,0.41664,2399.8,2399.6,0.41666]
[1726242165297,0.41662,2399.9,2399.7,0.41664]
[1726242166704,0.41661,2400.0,2399.8,0.41663]
[1726242166907,2.10744812,2400.2,2399.5,1.3001]
[1726242167204,1.84712,2400.5,2400.2,0.41655]
[1726242167502,2.47191,2400.5,2399.9,3.2078]
[1726242167698,2.47191,2400.5,2399.5,5.03313969]
[1726242167699,0.41659,2400.1,2399.8,0.41662]
[1726242167895,0.41659,2400.1,2399.6,3.2078]
[1726242168097,0.41659,2400.1,2399.8,0.41663]
[1726242168302,3.2078,2400.4,2399.7,0.41664]
[1726242168497,0.41663,2399.9,2399.6,3.62446]
[1726242168696,0.41661,2400.0,2399.7,0.41664]
[1726242168905,0.41662,2399.9,2399.7,0.41664]
[1726242169107,0.41661,2400.0,2399.7,0.41664]
[1726242169305,2.52402812,2400.2,2399.9,0.41661]
[1726242169500,1.04144,2400.2,2399.7,0.41664]
[1726242169809,0.41662,2399.9,2399.6,3.62446]
[1726242170009,1.04148,2400.1,2399.6,3.62446]
[1726242170210,2.10744812,2400.2,2399.6,3.62446]
[1726242170211,0.41664,2399.8,2399.6,3.62447]
[1726242170503,0.41663,2399.9,2399.7,0.41665]
[1726242170806,2.10744812,2400.2,2399.8,0.41663]
[1726242170807,0.41661,2400.0,2399.8,0.41663]
[1726242171204,0.41662,2399.9,2399.7,0.41664]
[1726242171408,0.41662,2399.9,2399.5,1.3001]
[1726242171409,0.41666,2399.7,2399.5,1.71678]
[1726242171601,0.41666,2399.7,2399.3,4.6276]
[1726242171602,0.41667,2399.6,2399.4,0.41669]
[1726242171795,0.41668,2399.6,2399.4,0.4167]
[1726242172007,0.41668,2399.6,2399.4,0.41669]
[1726242172202,0.41669,2399.5,2399.3,3.2078]
[1726242172410,0.41668,2399.6,2399.4,0.4167]
[1726242172610,1.04164,2399.7,2399.3,3.2078]
[1726242172803,0.41669,2399.5,2399.3,3.62451]
[1726242173109,0.4167,2399.5,2399.3,0.41672]
[1726242173498,4.24946,2399.7,2399.0,4.6107]
[1726242173808,0.41669,2399.5,2399.3,0.4167]
[1726242174005,0.41666,2399.7,2399.5,0.41668]
[1726242174506,0.41663,2399.8,2399.2,1.04185]
[1726242174707,2.71115763,2400.0,2399.7,0.41665]
[1726242174708,2.10744812,2400.0,2399.7,0.41665]
[1726242174911,0.41664,2399.8,2399.6,0.41666]
[1726242175818,0.41662,2399.9,2399.4,3.2078]
[1726242176002,0.41662,2399.9,2399.7,0.41664]
[1726242176208,0.41664,2399.8,2399.6,0.41666]
[1726242176399,0.41663,2399.9,2399.7,0.41665]
[1726242176811,3.2078,2400.1,2399.5,1.04171]
[1726242177005,3.62438,2400.1,2399.9,0.41661]
[1726242177511,2.10744812,2400.3,2399.6,2.7091]
[1726242177824,0.41661,2400.0,2399.8,0.41663]
[1726242178007,0.4166,2400.0,2399.8,0.41662]
[1726242178706,0.41659,2400.1,2399.9,0.41662]
[1726242179008,0.41659,2400.1,2399.7,3.2078]
[1726242179210,0.41659,2400.1,2399.9,0.41661]
[1726242179709,2.10744812,2400.3,2399.7,3.2078]
[1726242179910,5.91895763,2400.4,2399.7,3.2078]
[1726242179911,0.41661,2400.0,2399.9,0.41662]
[1726242180109,2.52400812,2400.3,2399.7,3.2078]
[1726242180419,2.10744812,2400.3,2399.7,4.24942]
[1726242180605,2.10744812,2400.3,2400.2,0.41656]
[1726242180807,2.10744812,2400.3,2399.9,1.04154]
[1726242180808,5.31524812,2400.4,2399.9,0.117]
[1726242181106,2.10744812,2400.3,2399.9,0.117]
[1726242181314,0.41657,2400.2,2400.0,0.4166]
[1726242181609,2.10744812,2400.3,2400.0,0.41659]
[1726242181808,0.41657,2400.2,2400.0,0.41659]
[1726242182110,2.52399812,2400.3,2400.0,0.41659]
[1726242182504,2.52399812,2400.3,2399.9,0.117]
[1726242182505,0.41657,2400.2,2399.9,0.53361]
[1726242182705,0.41657,2400.2,2400.0,0.4166]
[1726242182914,0.41658,2400.1,2399.9,0.53361]
[1726242183113,5.31524812,2400.4,2399.9,0.117]
[1726242183407,0.41656,2400.3,2399.9,0.117]
[1726242183614,5.73178812,2400.4,2400.0,3.2078]
[1726242183815,0.41657,2400.2,2400.0,3.62439]
[1726242184001,0.41658,2400.1,2400.0,3.2078]
[1726242184311,0.41657,2400.2,2400.0,3.62439]
[1726242184614,0.41658,2400.1,2400.0,3.2078]
[1726242184803,6.35659812,2400.4,2400.0,3.6244]
[1726242184804,0.41657,2400.2,2400.0,3.6244]
[1726242185516,0.41656,2400.2,2400.1,0.41658]
[1726242185812,0.41656,2400.2,2400.0,3.2078]
[1726242185813,5.31524812,2400.4,2400.0,3.2078]
[1726242186017,5.73178812,2400.4,2400.3,0.41655]
[1726242186207,5.73178812,2400.4,2400.2,0.41656]
[1726242186407,0.41655,2400.3,2400.1,0.41657]
[1726242186618,0.41656,2400.3,2400.1,0.41658]
[1726242186813,0.41655,2400.3,2400.1,0.41658]
[1726242187114,0.41656,2400.2,2400.0,0.41658]
[1726242187923,0.41658,2400.1,2399.9,0.5336]
[1726242188216,0.41658,2400.2,2400.0,0.4166]
[1726242188809,0.41659,2400.1,2399.9,0.53361]
[1726242189012,2.10744812,2400.3,2400.0,0.4166]
[1726242189215,2.10744812,2400.3,2399.9,0.117]
[1726242189216,0.4166,2400.0,2399.9,0.117]
[1726242189917,2.10744812,2400.1,2400.0,0.4166]
[1726242190105,2.10744812,2400.3,2400.2,0.41656]
[1726242190417,3.2078,2400.4,2399.9,0.117]
[1726242190418,5.31524812,2400.4,2399.9,0.117]
[1726242190615,6.10744812,2400.3,2399.9,0.117]
[1726242190919,2.10744812,2400.3,2399.9,0.117]
[1726242191222,5.31524812,2400.4,2399.9,0.117]
[1726242191413,5.31524812,2400.4,2400.1,0.41658]
[1726242191916,3.2078,2400.4,2400.1,0.41657]
[1726242192119,5.31524812,2400.4,2400.1,0.41657]
[1726242192322,5.73177812,2400.4,2400.0,3.62439]
[1726242193216,5.73178812,2400.4,2400.0,3.62439]
[1726242193924,5.73177812,2400.4,2400.0,3.62439]
[1726242194521,0.41655,2400.3,2400.0,3.62439]
[1726242194721,0.41655,2400.3,2400.0,3.2078]
[1726242194923,5.73178812,2400.4,2400.0,3.62439]
[1726242195124,0.41655,2400.3,2400.0,3.62439]
[1726242195511,2.52398812,2400.4,2400.0,3.62439]
[1726242195715,2.52398812,2400.4,2400.0,3.2078]
[1726242195916,2.52398812,2400.4,2400.3,0.117]
[1726242197124,18.58455763,2400.4,2400.3,0.117]
[1726242197323,14.83207,2400.4,2400.3,0.117]
[1726242198125,15.8734,2400.4,2400.3,0.117]
[1726242198324,19.1234,2400.4,2400.3,0.117]
[1726242198920,22.37678915,2400.4,2400.3,0.117]
[1726242199335,58.88207,2400.4,2400.3,0.117]
[1726242199539,12.08207,2400.4,2400.3,0.117]
[1726242199725,9.60175099,2400.4,2400.3,0.117]
[1726242200230,6.87434,2400.4,2400.3,0.117]
[1726242200428,9.60188058,2400.4,2400.3,0.117]
[1726242201234,9.60221139,2400.4,2400.3,0.117]
[1726242201827,13.76861139,2400.4,2400.3,0.117]
[1726242202335,12.08207,2400.4,2400.3,0.117]
[1726242202737,18.08207,2400.4,2400.3,0.117]
[1726242202928,19.1234,2400.4,2400.3,0.117]
[1726242203232,21.33545915,2400.4,2400.3,0.117]
[1726242203422,11.04074,2400.4,2400.3,0.117]
[1726242203621,12.08207,2400.4,2400.3,0.117]
[1726242204022,19.1234,2400.4,2400.3,0.117]
[1726242204230,18.08207,2400.4,2400.3,0.117]
[1726242205034,12.08207,2400.4,2400.3,0.117]
[1726242207840,11.04074,2400.4,2400.3,0.117]
[1726242208035,12.08207,2400.4,2400.3,0.117]
[1726242208935,6.87434,2400.4,2400.3,0.117]
[1726242212035,7.91567,2400.4,2400.3,0.117]
[1726242212931,19.1234,2400.4,2400.3,0.117]
[1726242213443,22.37678915,2400.4,2400.3,0.117]
[1726242214141,20.91891915,2400.4,2399.6,2.7091]
[1726242214339,0.41663,2399.8,2399.7,0.41664]
[1726242214538,5.43357112,2399.9,2399.7,0.41664]
[1726242214841,5.43357112,2399.9,2399.6,3.12576]
[1726242215031,5.43357112,2399.9,2399.6,2.7091]
[1726242215347,0.4167,2399.5,2399.3,0.41671]
[1726242215539,3.25,2399.4,2399.3,0.41671]
[1726242215736,3.25,2399.4,2399.1,1.3282]
[1726242216041,3.25,2399.4,2399.3,0.41672]
[1726242216241,3.25,2399.4,2399.2,0.41673]
[1726242216540,3.25,2399.4,2399.3,0.41672]
[1726242216934,3.25,2399.4,2399.1,1.3282]
[1726242217132,3.6667,2399.4,2399.1,1.3282]
[1726242217337,0.41673,2399.3,2399.1,1.3282]
[1726242217542,3.25,2399.3,2399.1,1.74495]
[1726242217843,3.25,2399.3,2399.1,1.3282]
[1726242218140,2.18357112,2399.4,2399.2,0.41674]
[1726242218444,2.18357112,2399.5,2399.2,0.41674]
[1726242218636,3.25,2399.4,2399.1,1.74494]
[1726242218836,5.85027112,2399.4,2399.1,1.74494]
[1726242219040,0.41673,2399.3,2399.1,1.3282]
[1726242219243,5.43357112,2399.4,2399.1,1.3282]
[1726242219443,0.41673,2399.3,2399.1,1.3282]
[1726242219638,0.41673,2399.3,2399.0,1.77126]
[1726242219639,5.43357112,2399.4,2399.0,1.3545]
[1726242219840,0.41673,2399.3,2399.0,1.77127]
[1726242220048,9.05808112,2399.4,2399.0,1.77127]
[1726242220244,0.41672,2399.3,2399.0,1.77127]
[1726242220443,0.41674,2399.2,2399.0,1.3545]
[1726242220641,8.64137112,2399.4,2399.0,1.3545]
[1726242220841,3.66675,2399.2,2399.0,1.3545]
[1726242221038,8.64137112,2399.4,2399.0,1.3545]
[1726242221238,6.4578,2399.4,2399.1,0.41676]
[1726242221542,0.41673,2399.3,2399.0,1.77126]
[1726242221741,0.41673,2399.3,2399.0,1.3545]
[1726242221944,0.41674,2399.2,2399.0,1.3545]
[1726242222139,0.41673,2399.3,2399.0,1.77127]
[1726242222536,0.41674,2399.2,2399.0,1.77127]
[1726242222747,0.41673,2399.3,2399.0,1.3545]
[1726242222951,0.41673,2399.3,2399.0,1.77127]
[1726242223450,6.4578,2399.4,2398.8,3.2078]
[1726242223642,3.25,2399.1,2398.6,1.3641]
[1726242223834,3.25,2399.1,2398.7,0.41682]
[1726242224038,2.18357112,2399.4,2398.8,3.2078]
[1726242224247,5.39137112,2399.5,2398.9,1.04198]
[1726242224453,3.2078,2399.5,2399.4,0.4167]
[1726242224744,3.2078,2399.5,2398.9,1.04198]
[1726242224944,3.2078,2399.5,2399.4,0.4167]
[1726242225242,3.2078,2399.5,2399.1,1.3152]
[1726242225434,3.62449,2399.5,2399.3,0.41671]
[1726242225744,3.62449,2399.5,2399.3,0.41672]
[1726242226042,3.62449,2399.5,2399.2,1.2968]
[1726242226252,3.62449,2399.5,2399.2,1.71352]
[1726242226442,3.2078,2399.5,2399.2,1.71352]
[1726242226743,3.2078,2399.5,2399.3,0.41672]
[1726242226938,3.6245,2399.5,2399.2,1.71353]
[1726242227345,3.6245,2399.5,2399.2,1.2968]
[1726242227346,0.41671,2399.4,2399.2,1.2968]
[1726242227550,0.41672,2399.3,2399.2,1.2968]
[1726242228348,0.41674,2399.2,2399.1,1.3152]
[1726242228539,3.25,2399.4,2399.1,1.73196]
[1726242228540,0.41673,2399.3,2399.1,1.73196]
[1726242228739,0.41679,2399.0,2398.8,3.2078]
[1726242228939,0.41673,2399.3,2399.1,0.41676]
[1726242229142,0.41673,2399.3,2398.8,3.2078]
[1726242229342,0.41674,2399.2,2398.8,3.2078]
[1726242229545,0.41676,2399.1,2398.9,0.41678]
[1726242229850,5.64969,2399.4,2399.0,0.41677]
[1726242230051,5.64969,2399.4,2398.8,3.2078]
[1726242230052,1.04183,2399.3,2398.8,3.2078]
[1726242230351,0.41679,2398.9,2398.7,1.3461]
[1726242230647,0.41682,2398.8,2398.6,0.41684]
[1726242230851,0.41684,2398.7,2398.4,0.41686]
[1726242231038,3.25,2398.9,2398.3,1.3941]
[1726242231238,3.6668,2398.9,2398.3,1.3941]
[1726242231540,3.6668,2398.9,2398.7,0.41682]
[1726242231845,3.6668,2398.9,2398.6,0.41683]
[1726242232944,0.41679,2399.0,2398.7,0.41682]
[1726242233142,3.2078,2398.8,2398.1,3.25]
[1726242233347,0.41693,2398.1,2398.0,1.05468988]
[1726242233653,4.66706,2398.1,2398.0,1.05468988]
[1726242233846,8.83746,2398.1,2398.0,1.05468988]
[1726242234951,8.83746,2398.1,2397.6,0.41701]
[1726242234952,0.41698,2397.8,2397.6,0.41701]
[1726242235248,3.25,2398.0,2397.8,0.41698]
[1726242235452,0.41696,2397.9,2397.7,0.41699]
[1726242235652,3.25,2398.0,2397.5,2.6821]
[1726242235850,3.25,2398.0,2397.7,0.417]
[1726242236353,0.41698,2397.9,2397.6,0.41701]
[1726242236554,0.41698,2397.8,2397.6,0.41701]
[1726242236852,0.417,2397.7,2397.5,3.09912]
[1726242237051,0.41702,2397.6,2397.5,1.3292]
[1726242237443,3.25,2397.7,2397.3,3.2078]
[1726242237644,0.41705,2397.4,2397.3,4.5901]
[1726242237848,3.66705,2397.4,2397.3,4.5901]
[1726242238044,3.25,2397.4,2397.3,3.2078]
[1726242238248,0.41708,2397.3,2397.1,10.22052425]
[1726242238446,3.66709,2397.2,2397.1,10.22052425]
[1726242239052,3.2078,2397.8,2397.1,14.39252425]
[1726242239053,3.25,2397.6,2397.1,14.39252425]
[1726242239347,0.41701,2397.7,2397.1,11.26327425]
[1726242239553,0.41701,2397.7,2397.4,0.41704]
[1726242240054,0.41704,2397.5,2397.2,0.41707]
[1726242240251,3.25,2397.4,2397.1,10.22052425]
[1726242240459,3.25,2397.4,2397.3,0.41707]
[1726242240648,3.25,2397.4,2397.2,0.41707]
[1726242240846,0.41707,2397.3,2397.1,10.63761425]
[1726242241153,0.41708,2397.3,2397.1,10.22052425]
[1726242241353,0.41708,2397.3,2397.1,10.63762425]
[1726242241751,3.25,2397.4,2397.2,0.41708]
[1726242241752,3.66706,2397.4,2397.2,0.41708]
[1726242242557,3.66706,2397.4,2397.1,1.2781]
[1726242242558,3.25,2397.4,2397.3,0.41707]
[1726242242849,3.25,2397.4,2397.1,1.6952]
[1726242242850,0.41708,2397.3,2397.1,1.6952]
[1726242243051,3.25,2397.4,2397.1,1.69519]
[1726242243250,3.66706,2397.4,2397.1,1.69519]
[1726242243450,0.41707,2397.3,2397.1,1.69519]
[1726242243645,3.25,2397.4,2397.1,1.2781]
[1726242243851,3.25,2397.4,2397.2,0.41708]
[1726242244157,3.25,2397.4,2397.3,0.41707]
[1726242244454,3.2078,2397.8,2397.5,0.41703]
[1726242244759,0.41703,2397.6,2397.3,0.41706]
[1726242245059,3.25,2397.7,2397.3,0.41707]
[1726242245060,3.25,2397.4,2397.3,0.41707]
[1726242245351,3.25,2397.4,2397.3,4.58827]
[1726242245550,3.66706,2397.4,2397.2,0.41707]
[1726242245859,3.66706,2397.4,2397.2,0.41708]
[1726242246051,3.66706,2397.4,2397.2,0.41707]
[1726242246356,3.25,2397.4,2397.2,0.41709]
[1726242246650,3.25,2397.4,2397.3,0.41707]
[1726242246961,3.66705,2397.4,2397.2,0.41709]
[1726242248045,3.25,2397.4,2397.3,0.41707]
[1726242248454,3.25,2397.4,2397.3,4.58827]
[1726242248744,1.04268,2397.3,2396.9,0.41713]
[1726242248961,3.25,2397.0,2396.3,4.25089]
[1726242249145,3.75008,2397.3,2396.7,0.41716]
[1726242249146,0.41714,2396.9,2396.7,0.41716]
[1726242249356,3.25,2396.7,2396.6,3.62498]
[1726242249653,6.4578,2396.7,2396.0,0.32804117]
[1726242249958,7.04287,2396.9,2396.0,0.41729]
[1726242249959,3.25,2396.1,2396.0,0.41729]
[1726242250345,3.2078,2396.3,2396.2,0.41726]
[1726242250346,6.4578,2396.3,2396.2,0.41726]
[1726242250651,6.4578,2396.3,2395.8,1.2684]
[1726242250847,3.25,2396.1,2395.9,0.4173]
[1726242251463,3.25,2396.1,2396.0,0.41729]
[1726242251653,6.87504,2396.3,2396.0,0.41728]
[1726242252055,0.41726,2396.2,2395.9,0.4173]
[1726242252254,0.41728,2396.1,2395.8,1.68572]
[1726242252655,0.41727,2396.2,2395.9,0.41731]
[1726242252958,6.4578,2396.3,2395.8,2.3117]
[1726242253156,3.2078,2396.3,2395.8,1.2684]
[1726242253656,0.41716,2396.8,2396.2,1.04316]
[1726242253857,3.66718,2396.7,2396.4,0.41722]
[1726242254057,3.25,2396.7,2396.5,0.4172]
[1726242254472,3.25,2396.7,2396.4,1.2679]
[1726242254651,3.25,2396.9,2396.8,0.41715]
[1726242254853,3.2078,2397.0,2396.5,7.63112811]
[1726242255161,3.2078,2397.0,2396.9,0.41714]
[1726242255352,4.172,2396.9,2395.5,3.2078]
[1726242255551,4.172,2396.9,2395.4,1.04349]
[1726242255552,3.25,2395.8,2395.4,2.5896]
[1726242256061,3.25,2395.8,2395.5,0.41737]
[1726242256062,3.66733,2395.8,2395.5,0.41737]
[1726242256265,3.66733,2395.8,2395.5,0.41738]
[1726242256470,3.25,2395.8,2395.6,0.41735]
[1726242256761,3.25,2396.2,2395.5,4.1744]
[1726242256964,3.25,2396.5,2396.0,0.41729]
[1726242257165,0.41725,2396.3,2395.6,1.04342]
[1726242257462,0.41725,2396.3,2395.5,6.4578]
[1726242257463,3.25,2396.3,2395.7,1.04336]
[1726242257650,3.2078,2396.6,2396.4,0.41722]
[1726242258060,3.2078,2396.6,2395.4,3.2078]
[1726242258061,4.1728,2396.5,2395.4,3.2078]
[1726242258250,4.1728,2396.5,2395.0,3.91696266]
[1726242258251,3.2078,2395.8,2395.0,3.91696266]
[1726242258455,3.2078,2395.8,2395.0,4.12679972]
[1726242258657,3.2078,2395.8,2395.5,0.41738]
[1726242258860,3.2078,2395.8,2395.2,3.2078]
[1726242259164,3.2078,2395.8,2395.3,1.04355]
[1726242259364,3.2078,2395.8,2395.7,0.41735]
[1726242259868,3.2078,2395.8,2395.3,2.41455]
[1726242260256,3.2078,2395.8,2395.5,0.41738]
[1726242260456,3.2078,2395.4,2394.0,0.212]
[1726242260764,4.1744,2395.7,2394.1,2.5943]
[1726242260765,4.01,2394.4,2394.1,2.5943]
[1726242260956,3.2078,2394.3,2394.1,2.5943]
[1726242262059,3.2078,2394.3,2394.1,6.7711]
[1726242262256,3.2078,2394.3,2394.1,2.5943]
[1726242262657,3.2078,2394.3,2394.1,6.7711]
[1726242262961,6.85700363,2396.7,2394.6,0.41754]
[1726242262962,3.2078,2394.7,2394.6,0.41754]
[1726242263163,3.2078,2395.0,2394.2,1.04399]
[1726242263363,3.2078,2395.0,2394.7,0.41752]
[1726242263561,3.2078,2395.0,2394.1,6.84614]
[1726242263562,3.2078,2395.0,2394.1,2.5943]
[1726242263764,3.2078,2395.0,2394.3,1.04398]
[1726242264069,3.2078,2395.0,2394.9,0.41749]
[1726242264773,3.2078,2395.0,2394.8,0.41749]
[1726242264963,3.2078,2395.0,2392.7,3.2078]
[1726242264964,1.04377,2394.8,2392.7,3.2078]
[1726242265165,3.2078,2393.9,2393.7,1.4001]
[1726242265665,3.62546,2393.9,2393.7,1.4001]
[1726242265865,3.2078,2393.9,2393.7,1.4001]
[1726242266065,4.01,2393.8,2392.1,4.01]
[1726242266267,4.01,2393.4,2393.3,0.41775]
[1726242266766,4.01,2393.4,2393.2,0.41777]
[1726242266977,4.01,2393.4,2393.2,0.41778]
[1726242267369,4.01,2393.4,2393.2,0.41777]
[1726242267670,7.2178,2393.4,2393.1,1.4001]
[1726242267860,7.2178,2393.4,2392.7,3.2078]
[1726242268063,4.01,2393.1,2393.0,0.41782]
[1726242268263,4.51,2393.3,2393.0,0.41782]
[1726242268464,4.51,2393.3,2392.7,3.2078]
[1726242269065,4.51,2393.3,2393.0,0.41781]
[1726242269267,1.04457,2393.0,2391.7,0.32448542]
[1726242269489,3.2078,2392.3,2392.2,0.41796]
[1726242269970,5.8824,2393.2,2392.5,0.41789]
[1726242269971,3.2078,2392.8,2392.5,0.41789]
[1726242270178,3.2078,2392.8,2392.3,2.6595]
[1726242270388,3.2078,2392.5,2392.3,2.6595]
[1726242271367,3.2078,2392.5,2391.6,1.3177]
[1726242271674,3.2078,2392.2,2392.0,0.41798]
[1726242271974,3.2078,2392.2,2391.9,1.2955]
[1726242272171,3.2078,2392.2,2392.0,0.41798]
[1726242272361,3.2078,2392.2,2391.9,1.7135]
[1726242272775,3.2078,2392.2,2391.9,1.2955]
[1726242273073,3.2078,2392.2,2391.8,1.364]
[1726242273074,4.1808,2392.1,2390.4,3.2078]
[1726242273278,4.1808,2392.1,2391.2,0.41813]
[1726242273279,3.2078,2391.3,2391.2,0.41813]
[1726242273576,7.7178,2391.6,2390.9,10.10258443]
[1726242273772,3.2078,2391.3,2391.0,0.41815]
[1726242273967,4.51,2391.6,2391.4,0.41809]
[1726242273968,3.2078,2391.6,2391.4,0.41809]
[1726242274167,3.2078,2391.6,2390.9,1.3863]
[1726242274677,3.2078,2391.6,2391.2,0.41812]
[1726242275270,3.2078,2391.6,2391.0,0.41816]
[1726242275271,3.2078,2391.3,2391.0,0.41816]
[1726242275674,3.2078,2391.3,2391.2,0.41813]
[1726242276066,3.2078,2391.3,2390.9,1.3863]
[1726242276266,3.2078,2391.3,2391.2,0.41813]
[1726242276880,3.2078,2391.6,2391.2,10.1816]
[1726242277085,3.2078,2392.0,2391.7,0.41804]
[1726242277283,3.2078,2392.0,2391.2,1.04534]
[1726242277485,4.51,2391.9,2391.6,0.41806]
[1726242277978,4.51,2391.9,2390.2,0.212]
[1726242277979,1.04528,2391.4,2390.5,0.41824]
[1726242278285,3.2078,2391.7,2390.0,4.45365]
[1726242278286,7.7178,2390.6,2390.0,3.4078]
[1726242278480,3.2078,2390.3,2390.0,0.2]
[1726242278675,3.2078,2390.3,2390.0,0.61833]
[1726242278876,3.2078,2390.3,2390.0,0.2]
[1726242279275,3.2078,2390.3,2390.2,0.41831]
[1726242280075,3.2078,2390.3,2389.5,1.04608]
[1726242280076,3.2078,2390.3,2389.4,1.04613]
[1726242280273,3.2078,2390.3,2388.5,4.51]
[1726242280274,3.2078,2390.3,2390.2,0.41831]
[1726242280769,7.3918,2390.3,2390.1,0.41831]
[1726242281076,3.2078,2390.3,2390.0,0.41833]
[1726242281277,4.51,2390.2,2389.9,0.41835]
[1726242281884,4.51,2390.2,2389.4,8.74774219]
[1726242281885,4.51,2390.2,2389.4,9.79384219]
[1726242282079,4.51,2390.2,2389.9,0.41835]
[1726242282488,4.51,2390.2,2389.4,8.74774219]
[1726242282686,3.2078,2390.0,2389.9,0.41836]
[1726242283583,3.2078,2390.0,2389.8,0.41836]
[1726242283785,3.2078,2390.0,2389.9,0.41836]
[1726242284580,3.2078,2390.0,2389.8,0.41837]
[1726242284780,3.2078,2390.0,2389.9,0.41836]
[1726242285280,4.51,2390.2,2389.6,3.2078]
[1726242285481,4.51,2390.2,2389.8,0.41837]
[1726242285683,3.2078,2390.0,2389.6,3.2078]
[1726242285981,3.2078,2390.0,2389.9,0.41836]
[1726242286378,4.51,2390.2,2389.9,4.184]
[1726242286582,4.51,2390.2,2390.1,0.41832]
[1726242287986,3.2078,2390.3,2390.2,0.41831]
[1726242288394,4.02,2390.4,2390.2,0.41831]
[1726242288793,4.02,2390.4,2390.0,1.3653]
[1726242289096,4.02,2390.4,2390.2,0.41829]
[1726242289297,4.02,2390.4,2390.3,0.41829]
[1726242289697,3.2078,2390.5,2390.4,0.41827]
[1726242289892,4.02,2390.7,2390.6,0.41824]
[1726242290792,7.2278,2391.0,2390.9,0.41818]
[1726242290998,7.2278,2391.0,2390.8,0.41819]
[1726242291197,7.2278,2391.0,2390.9,0.41818]
[1726242291494,3.2078,2391.0,2390.9,0.41818]
[1726242291690,3.2078,2391.0,2390.9,5.64605]
[1726242291890,3.2078,2391.3,2391.2,0.41813]
[1726242292198,4.02,2391.5,2391.4,0.4181]
[1726242294498,4.02,2391.5,2391.4,4.5997]
[1726242294793,4.02,2391.5,2391.4,0.4181]
[1726242294993,4.02,2391.8,2391.7,0.41804]
[1726242295294,4.02,2392.2,2391.9,0.41799]
[1726242295593,3.2078,2392.1,2392.0,0.41799]
[1726242295987,4.02,2392.2,2392.1,0.41798]
[1726242296290,4.02,2393.0,2392.8,0.41784]
[1726242296599,4.02,2393.0,2392.4,1.04479]
[1726242296794,4.02,2393.0,2392.7,0.41787]
[1726242296795,3.2078,2392.8,2392.7,0.41787]
[1726242297095,4.02,2393.0,2392.3,1.04486]
[1726242297294,3.2078,2392.9,2392.6,0.41788]
[1726242297495,3.2078,2392.9,2392.7,0.41786]
[1726242297899,3.2078,2392.9,2392.6,0.41788]